bitfinex-derivatives/quotes_BNBF0:USTF0_20250524
["timestamp","ask_amount","ask_price","bid_price","bid_amount"]
[1748101569163,0.29716357,673.03,672.7,0.60026646]
[1748101570963,0.29716357,673.03,672.71,0.60026646]
[1748101572365,0.29716357,673.03,672.72,0.60026646]
[1748101574067,0.29716357,673.03,672.73,0.60026646]
[1748101575162,0.29716357,673.03,672.66,0.60026646]
[1748101576170,0.29716357,673.03,672.67,0.60026646]
[1748101577167,0.29716357,673.03,672.68,0.60026646]
[1748101578670,0.29716357,673.03,672.69,0.60026646]
[1748101579768,0.29716357,673.03,672.7,0.60026646]
[1748101580469,0.29716357,673.03,672.71,0.60026646]
[1748101582069,0.29716357,673.03,672.72,0.60026646]
[1748101583170,0.29716357,673.03,672.73,0.60026646]
[1748101584473,0.29716357,673.03,672.74,0.60026646]
[1748101585472,0.29716357,673.03,672.75,0.60026646]
[1748101586477,0.29716357,673.03,672.76,0.60026646]
[1748101587775,0.29716357,673.03,672.66,0.60026646]
[1748101589475,0.29716357,673.03,672.67,0.60026646]
[1748101590778,0.29716357,673.03,672.68,0.60026646]
[1748101592275,0.29716357,673.03,672.69,0.60026646]
[1748101593279,0.29716357,673.03,672.7,0.60026646]
[1748101594778,0.29716357,673.03,672.71,0.60026646]
[1748101595880,0.29716357,673.03,672.66,0.64806224]
[1748101595881,0.29716357,673.03,672.72,0.60026646]
[1748101596780,0.29716357,673.03,672.73,0.705]
[1748101598083,0.29716357,673.03,672.74,0.60026646]
[1748101599584,0.29716357,673.03,672.75,0.60026646]
[1748101600784,0.29716357,673.03,672.76,0.60026646]
[1748101602385,0.29716357,673.03,672.77,0.60026646]
[1748101603681,0.29716357,673.03,672.78,0.60026646]
[1748101604887,0.29716357,673.03,672.79,0.60026646]
[1748101605990,0.29716357,673.03,672.8,0.60026646]
[1748101607791,0.29716357,673.03,672.81,0.60026646]
[1748101609491,0.29716357,673.03,672.82,0.60026646]
[1748101610593,0.29716357,673.03,672.83,0.60026646]
[1748101612193,0.29716357,673.03,672.84,0.60026646]
[1748101613397,0.29716357,673.03,672.85,0.60026646]
[1748101615294,0.29716357,673.03,672.86,0.60026646]
[1748101616096,0.29716357,673.03,672.87,0.60026646]
[1748101617692,0.29716357,673.03,672.88,0.60026646]
[1748101618897,0.29716357,673.03,672.89,0.60026646]
[1748101619900,0.29716357,673.03,672.9,0.60026646]
[1748101621000,0.29716357,673.03,672.91,0.60026646]
[1748101621800,3.69944117,674.36,672.91,0.60026646]
[1748101621995,0.25842768,673.8,672.91,0.60026646]
[1748101622199,0.29683279,673.78,672.91,0.60026646]
[1748101622499,0.29683279,673.78,672.92,0.60026646]
[1748101624107,0.29683279,673.78,672.93,0.60026646]
[1748101625506,0.29683279,673.78,672.85,0.64806224]
[1748101627001,0.29683279,673.78,672.86,0.60026646]
[1748101628508,0.29683279,673.78,672.89,0.64806224]
[1748101629707,0.29683279,673.78,672.9,0.60026646]
[1748101631507,0.29683279,673.78,672.91,0.60026646]
[1748101632909,0.29683279,673.78,672.92,0.60026646]
[1748101634512,0.29683279,673.78,672.93,0.60026646]
[1748101635211,0.29683279,673.78,672.93,1.14626646]
[1748101636314,0.29683279,673.78,672.94,0.60026646]
[1748101637614,0.29683279,673.78,672.96,0.64806224]
[1748101638815,0.29683279,673.78,672.97,0.60026646]
[1748101640314,0.29683279,673.78,672.98,0.60026646]
[1748101641518,0.29683279,673.78,672.99,0.60026646]
[1748101642518,0.29683279,673.78,673.0,0.60026646]
[1748101643721,0.29683279,673.78,673.01,0.60026646]
[1748101645217,0.29683279,673.78,673.02,0.60026646]
[1748101646823,0.29683279,673.78,673.03,0.60026646]
[1748101648825,0.29683279,673.78,673.04,0.60026646]
[1748101649826,0.29683279,673.78,673.05,0.60026646]
[1748101651130,0.29683279,673.78,673.06,0.60026646]
[1748101652231,0.29683279,673.78,673.07,0.60026646]
[1748101653032,0.29683279,673.78,673.08,0.668]
[1748101653530,0.29683279,673.78,673.09,0.60026646]
[1748101660337,0.29683279,673.78,673.1,0.60026646]
[1748101661439,0.29683279,673.78,673.11,0.60026646]
[1748101662435,0.29683279,673.78,673.12,0.60026646]
[1748101663836,0.29683279,673.78,673.08,0.668]
[1748101663837,0.29683279,673.78,673.16,0.64806224]
[1748101664841,0.29683279,673.78,673.17,0.60026646]
[1748101666843,0.29683279,673.78,673.3,0.64806224]
[1748101668044,0.29683279,673.78,673.31,0.60026646]
[1748101669648,0.29683279,673.78,673.32,1.2483287]
[1748101670947,0.29683279,673.78,673.33,0.60026646]
[1748101671949,0.29683279,673.78,673.34,0.60026646]
[1748101673252,0.29683279,673.78,673.35,0.60026646]
[1748101674748,0.29683279,673.78,673.36,0.60026646]
[1748101675854,0.29683279,673.78,673.37,0.60026646]
[1748101677053,0.29683279,673.78,673.38,0.60026646]
[1748101677954,0.29683279,673.78,673.37,0.64806224]
[1748101679155,0.29683279,673.78,673.38,0.60026646]
[1748101680155,0.29683279,673.78,673.37,0.64806224]
[1748101682157,0.29683279,673.78,673.38,1.2483287]
[1748101683159,0.29683279,673.78,673.38,0.64806224]
[1748101684562,0.29683279,673.78,673.39,0.60026646]
[1748101686359,0.29683279,673.78,673.38,0.64806224]
[1748101687856,0.29683279,673.78,673.39,0.60026646]
[1748101689156,0.29683279,673.78,673.38,0.64806224]
[1748101690662,0.29683279,673.78,673.39,1.2483287]
[1748101691569,0.29683279,673.78,673.39,0.64806224]
[1748101693173,0.29683279,673.78,673.4,0.60026646]
[1748101694872,0.29683279,673.78,673.41,0.60026646]
[1748101695772,0.29683279,673.78,673.42,0.60026646]
[1748101697067,0.29683279,673.78,673.36,0.64806224]
[1748101697068,0.29683279,673.78,673.37,0.60026646]
[1748101698274,0.29683279,673.78,673.38,0.60026646]
[1748101699274,0.29683279,673.78,673.39,0.60026646]
[1748101701076,0.29683279,673.78,673.35,0.64806224]
[1748101701077,0.29683279,673.78,673.4,0.60026646]
[1748101702076,0.29683279,673.78,673.41,0.46]
[1748101702576,0.29683279,673.78,673.42,0.60026646]
[1748101704177,0.29683279,673.78,673.43,0.60026646]
[1748101705177,0.29683279,673.78,673.44,0.60026646]
[1748101706479,0.29683279,673.78,673.45,0.60026646]
[1748101707882,0.29683279,673.78,673.46,0.60026646]
[1748101708582,0.29683279,673.78,673.47,0.60026646]
[1748101709585,0.29683279,673.78,673.48,0.60026646]
[1748101710881,0.29683279,673.78,673.42,0.60026646]
[1748101712091,0.29683279,673.78,673.43,0.60026646]
[1748101713186,0.29683279,673.78,673.44,0.60026646]
[1748101714387,0.29683279,673.78,673.45,0.60026646]
[1748101715890,0.29683279,673.78,673.46,0.60026646]
[1748101716691,0.29683279,673.78,673.47,0.60026646]
[1748101717794,0.29683279,673.78,673.48,0.60026646]
[1748101718991,0.29683279,673.78,673.49,0.60026646]
[1748101720694,0.29683279,673.78,673.5,0.60026646]
[1748101721694,0.29683279,673.78,673.51,0.60026646]
[1748101722794,0.29683279,673.78,673.52,0.60026646]
[1748101724194,0.29683279,673.78,673.53,0.60026646]
[1748101725496,0.29683279,673.78,673.54,0.60026646]
[1748101726495,0.29683279,673.78,673.55,0.60026646]
[1748101728203,0.29683279,673.78,673.56,0.60026646]
[1748101729998,0.29683279,673.78,673.57,0.60026646]
[1748101731401,0.29683279,673.78,673.43,0.60026646]
[1748101732101,0.29683279,673.78,673.44,0.60026646]
[1748101733504,0.29683279,673.78,673.41,0.46]
[1748101733505,0.29683279,673.78,673.45,0.60026646]
[1748101734605,0.29683279,673.78,673.46,0.60026646]
[1748101735706,0.29683279,673.78,673.47,0.60026646]
[1748101736907,0.29683279,673.78,673.48,0.60026646]
[1748101738302,0.29683279,673.78,673.41,0.46]
[1748101738303,0.29683279,673.78,673.49,0.60026646]
[1748101739709,0.29683279,673.78,673.5,0.60026646]
[1748101741509,0.29683279,673.78,673.42,0.60026646]
[1748101742712,0.29683279,673.78,673.43,0.60026646]
[1748101744210,0.29683279,673.78,673.42,0.60026646]
[1748101747817,0.29683279,673.78,673.24,0.60026646]
[1748101749017,0.29683279,673.78,673.25,0.723]
[1748101750313,0.29683279,673.78,673.26,0.60026646]
[1748101773637,0.29683279,673.78,673.25,0.723]
[1748101778141,0.29683279,673.78,672.98,0.64806224]
[1748101779637,0.29683279,673.78,673.0,0.64806224]
[1748101780742,0.29683279,673.78,673.01,0.453]
[1748101780941,0.29683279,673.78,673.02,0.61123292]
[1748101782243,0.29683279,673.78,673.03,0.61123292]
[1748101783644,0.29683279,673.78,673.04,0.61123292]
[1748101784945,0.29683279,673.78,673.05,0.61123292]
[1748101786143,0.29683279,673.78,673.06,0.61123292]
[1748101787742,0.29683279,673.78,673.07,0.61123292]
[1748101788643,0.29683279,673.78,673.08,0.61123292]
[1748101790247,0.29683279,673.78,673.09,0.61123292]
[1748101791148,0.29683279,673.78,673.1,0.61123292]
[1748101792250,0.29683279,673.78,673.11,0.61123292]
[1748101793250,0.29683279,673.78,673.12,0.61123292]
[1748101795050,0.29683279,673.78,673.01,0.453]
[1748101795950,0.29683279,673.78,673.02,0.61109299]
[1748101797450,0.29683279,673.78,673.03,0.61109299]
[1748101798454,0.29683279,673.78,673.02,0.61109299]
[1748101801555,0.29683279,673.78,672.93,0.61109299]
[1748101803053,0.29683279,673.78,672.94,0.61109299]
[1748101803457,0.29683279,673.78,672.95,0.562]
[1748101804458,0.29683279,673.78,672.96,0.61109299]
[1748101805857,0.29683279,673.78,672.97,0.61109299]
[1748101807357,0.29683279,673.78,672.98,0.61109299]
[1748101808458,0.29683279,673.78,672.96,0.61109299]
[1748101818365,0.29683279,673.78,672.97,1.25915523]
[1748101819565,0.29683279,673.78,672.98,0.61109299]
[1748101820859,0.29683279,673.78,673.03,0.64806224]
[1748101821666,0.29683279,673.78,673.04,0.61109299]
[1748101822763,0.29683279,673.78,673.05,1.25915523]
[1748101823769,0.29683279,673.78,673.06,0.61109299]
[1748101824868,0.29683279,673.78,673.07,0.61109299]
[1748101825969,0.29683279,673.78,673.08,0.61109299]
[1748101827264,0.29683279,673.78,673.09,0.61109299]
[1748101827471,0.29683279,673.78,673.09,1.25915523]
[1748101828467,0.29683279,673.78,673.1,0.61109299]
[1748101829567,0.29683279,673.78,673.12,0.64806224]
[1748101830667,0.29683279,673.78,673.13,0.61109299]
[1748101831767,0.29683279,673.78,673.14,0.61109299]
[1748101832874,0.29683279,673.78,673.15,0.61109299]
[1748101833873,0.29683279,673.78,673.16,0.61109299]
[1748101835376,0.29683279,673.78,673.17,0.61109299]
[1748101836077,0.29683279,673.78,673.18,0.61109299]
[1748101837479,0.29683279,673.78,673.19,0.61109299]
[1748101838883,0.29683279,673.78,673.2,0.61109299]
[1748101840284,0.29683279,673.78,673.21,0.61109299]
[1748101841788,0.29683279,673.78,673.22,0.61109299]
[1748101842887,0.29683279,673.78,673.23,0.61109299]
[1748101844489,0.29683279,673.78,673.01,0.86757287]
[1748101844490,0.29683279,673.78,673.24,1.25509299]
[1748101846191,0.29683279,673.78,673.25,0.61109299]
[1748101847295,0.29683279,673.78,673.26,0.61109299]
[1748101848294,0.29683279,673.78,673.27,0.61109299]
[1748101850500,0.29683279,673.78,673.28,0.61109299]
[1748101851500,0.29683279,673.78,673.29,0.61109299]
[1748101852801,0.29683279,673.78,673.3,0.61109299]
[1748101854002,0.29683279,673.78,673.31,0.61109299]
[1748101855503,0.29683279,673.78,673.32,0.61109299]
[1748101856605,0.29683279,673.78,673.33,0.61109299]
[1748101857805,0.29683279,673.78,673.34,0.61109299]
[1748101858904,0.29683279,673.78,673.35,0.61109299]
[1748101860305,0.29683279,673.78,673.36,0.61109299]
[1748101861806,0.29683279,673.78,673.37,0.61109299]
[1748101863209,0.29683279,673.78,673.38,0.61109299]
[1748101864310,0.29683279,673.78,673.39,0.61109299]
[1748101865811,0.29683279,673.78,673.4,0.61109299]
[1748101867412,0.29683279,673.78,673.41,0.61109299]
[1748101869014,0.29683279,673.78,673.42,0.61109299]
[1748101870613,0.29683279,673.78,673.43,0.61109299]
[1748101872716,0.29683279,673.78,673.44,0.61109299]
[1748101873916,0.29683279,673.78,673.45,0.61109299]
[1748101875117,0.29683279,673.78,673.24,0.644]
[1748101875118,0.29683279,673.78,673.46,0.61109299]
[1748101876017,0.29683279,673.78,673.47,0.61109299]
[1748101878019,0.29683279,673.78,673.48,0.61109299]
[1748101879418,0.29683279,673.78,673.49,0.61109299]
[1748101880920,0.29683279,673.78,673.5,0.61109299]
[1748101882319,0.29683279,673.78,673.51,0.61109299]
[1748101883715,0.29683279,673.78,673.52,0.61109299]
[1748101885018,0.29683279,673.78,673.53,0.61109299]
[1748101886222,0.29683279,673.78,673.54,0.56]
[1748101886818,0.29683279,673.78,673.54,1.17109299]
[1748101887722,0.29683279,673.78,673.55,0.61109299]
[1748101888922,0.29683279,673.78,673.56,0.61109299]
[1748101889920,0.29683279,673.78,673.57,0.61109299]
[1748101890822,0.25814204,674.58,673.57,0.61109299]
[1748101891019,0.29648956,674.56,673.57,0.61109299]
[1748101891422,0.29648956,674.56,673.58,0.61109299]
[1748101892724,0.29648956,674.56,673.59,0.61109299]
[1748101894533,0.29648956,674.56,673.6,0.61109299]
[1748101895525,0.29648956,674.56,673.61,0.61109299]
[1748101896722,0.29648956,674.56,673.62,0.61109299]
[1748101897924,0.29648956,674.56,673.63,0.61109299]
[1748101899232,0.29648956,674.56,673.64,0.61109299]
[1748101900132,0.29648956,674.56,673.65,0.61109299]
[1748101901837,0.29648956,674.56,673.66,0.61109299]
[1748101903039,0.29648956,674.56,673.67,0.61109299]
[1748101903937,0.29648956,674.56,673.68,0.674]
[1748101904535,0.29648956,674.56,673.69,0.61109299]
[1748101905632,0.29648956,674.56,673.7,0.61109299]
[1748101907137,0.29648956,674.56,673.71,0.61109299]
[1748101908337,0.29648956,674.56,673.68,0.674]
[1748101955490,3.69944117,674.52,673.68,0.674]
[1748101955691,0.29651593,674.5,673.68,0.674]
[1748102054291,3.69944117,674.4,673.68,0.674]
[1748102054586,0.2965643,674.39,673.68,0.674]
[1748102090923,0.25820334,674.22,673.68,0.674]
[1748102091222,0.29664347,674.21,673.68,0.674]
[1748102116040,0.29664347,674.21,673.69,0.60939051]
[1748102117340,0.29664347,674.21,673.7,0.60939051]
[1748102118948,0.29664347,674.21,673.71,0.60939051]
[1748102120149,0.29664347,674.21,673.72,0.60939051]
[1748102120546,0.29664347,674.21,673.73,0.584]
[1748102121451,0.29664347,674.21,673.74,0.60939051]
[1748102122649,0.29664347,674.21,673.75,0.60939051]
[1748102123949,0.29664347,674.21,673.74,0.60939051]
[1748102130152,0.29664347,674.21,673.75,0.60939051]
[1748102131549,0.29664347,674.21,673.76,0.60939051]
[1748102132654,0.29664347,674.21,673.77,0.60939051]
[1748102134261,0.29664347,674.21,673.78,0.60939051]
[1748102136161,0.29664347,674.21,673.74,0.60939051]
[1748102137664,0.29664347,674.21,673.75,0.60939051]
[1748102138965,0.29664347,674.21,673.76,0.60939051]
[1748102139866,0.29664347,674.21,673.77,0.60939051]
[1748102141068,0.29664347,674.21,673.78,0.60939051]
[1748102142567,0.29664347,674.21,673.79,0.60939051]
[1748102143970,0.29664347,674.21,673.74,0.60939051]
[1748102146068,0.29664347,674.21,673.75,0.60939051]
[1748102146766,0.29664347,674.21,673.76,0.60939051]
[1748102148071,0.29664347,674.21,673.74,0.60939051]
[1748102149179,0.29664347,674.21,673.75,0.60939051]
[1748102150381,0.29664347,674.21,673.74,0.60939051]
[1748102151381,0.29664347,674.21,673.75,0.60939051]
[1748102152783,0.29664347,674.21,673.74,0.60939051]
[1748102153783,0.29664347,674.21,673.75,0.60939051]
[1748102155479,0.29664347,674.21,673.74,0.60939051]
[1748102160091,0.29664347,674.21,673.66,0.60939051]
[1748102161091,0.29664347,674.21,673.67,0.674]
[1748102161390,0.29664347,674.21,673.67,1.93145275]
[1748102162691,0.29664347,674.21,673.68,0.60939051]
[1748102163990,0.29664347,674.21,673.69,0.60939051]
[1748102165096,0.29664347,674.21,673.7,0.60939051]
[1748102166597,0.29664347,674.21,673.71,1.25745275]
[1748102167596,0.29664347,674.21,673.72,0.60939051]
[1748102169400,0.29664347,674.21,673.73,0.60939051]
[1748102170905,0.29664347,674.21,673.74,0.60939051]
[1748102171906,0.29664347,674.21,673.75,0.60939051]
[1748102172907,0.29664347,674.21,673.76,0.60939051]
[1748102174207,0.29664347,674.21,673.77,1.25745275]
[1748102175502,0.29664347,674.21,673.78,0.60939051]
[1748102176811,0.29664347,674.21,673.83,0.64806224]
[1748102178110,0.29664347,674.21,673.84,0.60939051]
[1748102179312,0.29664347,674.21,673.67,0.674]
[1748102179313,0.29664347,674.21,673.86,0.64806224]
[1748102180810,0.29664347,674.21,673.87,0.60939051]
[1748102182115,0.29664347,674.21,673.88,0.60939051]
[1748102183016,0.29664347,674.21,673.89,0.60939051]
[1748102184317,0.29664347,674.21,673.9,0.60939051]
[1748102185819,0.29664347,674.21,673.91,0.60939051]
[1748102186519,0.29664347,674.21,673.92,0.60939051]
[1748102187816,0.29664347,674.21,673.93,0.60939051]
[1748102188922,0.29664347,674.21,673.94,0.60939051]
[1748102190022,0.29664347,674.21,673.95,0.60939051]
[1748102191023,0.29664347,674.21,673.96,0.60939051]
[1748102192223,0.29664347,674.21,673.97,0.60939051]
[1748102193624,0.29664347,674.21,673.98,0.60939051]
[1748102194825,0.29664347,674.21,673.99,0.60939051]
[1748102196126,0.29664347,674.21,674.0,0.60939051]
[1748102197725,0.29664347,674.21,674.01,0.60939051]
[1748102198826,0.29664347,674.21,674.02,0.60939051]
[1748102200428,0.29664347,674.21,674.03,0.60939051]
[1748102202334,0.29664347,674.21,674.04,0.60939051]
[1748102203233,0.29664347,674.21,674.05,0.60939051]
[1748102204634,0.29664347,674.21,674.06,0.60939051]
[1748102205534,0.29664347,674.21,674.07,0.60939051]
[1748102206933,0.29664347,674.21,673.89,0.64806224]
[1748102206934,0.29664347,674.21,674.08,0.60939051]
[1748102208131,0.29664347,674.21,674.09,0.60939051]
[1748102209335,0.29664347,674.21,674.1,0.60939051]
[1748102210635,0.29664347,674.21,674.04,0.677]
[1748102267595,0.29664347,674.21,674.05,0.62224813]
[1748102268794,0.29664347,674.21,674.04,0.677]
[1748102271394,0.29664347,674.21,674.05,0.62170214]
[1748102273096,0.29664347,674.21,674.04,0.677]
[1748102281799,0.29664347,674.21,674.05,0.62123637]
[1748102282499,0.29664347,674.21,674.06,0.62123637]
[1748102283802,0.29664347,674.21,674.07,0.62123637]
[1748102284703,0.29664347,674.21,674.08,0.62123637]
[1748102285704,0.29664347,674.21,674.04,0.677]
[1748102287304,0.29664347,674.21,674.05,0.6207832]
[1748102289008,0.29664347,674.21,674.06,0.6207832]
[1748102289906,0.29664347,674.21,674.04,0.677]
[1748102309736,0.29664347,674.21,674.05,0.62247613]
[1748102311239,0.29664347,674.21,674.06,0.62247613]
[1748102312938,0.29664347,674.21,674.05,0.62247613]
[1748102314245,0.29664347,674.21,674.06,0.62247613]
[1748102316043,0.29664347,674.21,674.07,0.62247613]
[1748102316744,0.29664347,674.21,674.08,0.62247613]
[1748102317946,0.29664347,674.21,674.09,0.62247613]
[1748102319247,0.29664347,674.21,674.1,0.62247613]
[1748102320747,0.29664347,674.21,674.11,0.62247613]
[1748102321948,0.29664347,674.21,674.12,0.62247613]
[1748102323245,0.29664347,674.21,674.13,0.62247613]
[1748102324347,0.29664347,674.21,674.14,0.62247613]
[1748102325346,0.29664347,674.21,674.15,0.62247613]
[1748102326657,0.29664347,674.21,674.16,0.62247613]
[1748102327858,0.29664347,674.21,674.17,0.62247613]
[1748102329052,0.29664347,674.21,674.18,0.62247613]
[1748102330560,0.29664347,674.21,674.04,0.677]
[1748102331561,0.29664347,674.21,674.05,0.62220882]
[1748102332759,0.29664347,674.21,674.06,0.62220882]
[1748102333958,0.29664347,674.21,674.07,0.62220882]
[1748102335064,0.29664347,674.21,674.08,0.62220882]
[1748102336062,0.29664347,674.21,674.09,0.62220882]
[1748102337362,0.29664347,674.21,674.1,0.62220882]
[1748102338868,0.29664347,674.21,674.11,0.62220882]
[1748102340066,0.29664347,674.21,674.04,0.677]
[1748102340067,0.29664347,674.21,674.12,0.62220882]
[1748102341265,0.29664347,674.21,674.13,0.62220882]
[1748102342965,0.29664347,674.21,674.14,0.62220882]
[1748102343970,0.29664347,674.21,674.15,0.62220882]
[1748102345568,0.29664347,674.21,674.16,0.62220882]
[1748102346873,0.29664347,674.21,674.04,0.677]
[1748102408715,0.29664347,674.21,674.05,0.62274375]
[1748102410016,0.29664347,674.21,674.04,0.677]
[1748102421431,0.29664347,674.21,673.46,0.64747751]
[1748102422130,0.29664347,674.21,673.47,0.6119629]
[1748102423836,0.29664347,674.21,673.62,0.64747751]
[1748102424538,0.29664347,674.21,673.63,0.6119629]
[1748102426035,0.29664347,674.21,673.72,0.64747751]
[1748102427639,0.29664347,674.21,673.73,0.6119629]
[1748102428638,0.29664347,674.21,673.74,0.6119629]
[1748102429734,0.29664347,674.21,673.75,0.6119629]
[1748102431038,0.29664347,674.21,673.79,0.64747751]
[1748102431842,0.29664347,674.21,673.8,0.6119629]
[1748102432943,0.29664347,674.21,673.85,0.64747751]
[1748102434444,0.29664347,674.21,673.86,0.6119629]
[1748102435946,0.29664347,674.21,673.87,0.6119629]
[1748102437142,0.29664347,674.21,673.88,0.6119629]
[1748102438643,0.29664347,674.21,673.89,0.6119629]
[1748102440246,0.29664347,674.21,673.9,0.6119629]
[1748102441349,0.29664347,674.21,673.91,0.6119629]
[1748102442250,0.29664347,674.21,673.72,0.64747751]
[1748102444051,0.29664347,674.21,673.73,0.58145192]
[1748102445053,0.29664347,674.21,673.74,0.58145192]
[1748102446355,0.29664347,674.21,673.75,0.58145192]
[1748102447756,0.29664347,674.21,673.76,0.58145192]
[1748102449363,0.29664347,674.21,673.77,0.58145192]
[1748102450760,0.29664347,674.21,673.78,0.58145192]
[1748102452162,0.29664347,674.21,673.79,0.58145192]
[1748102453257,0.29664347,674.21,673.8,0.58145192]
[1748102454357,0.29664347,674.21,673.81,0.58145192]
[1748102455265,0.29664347,674.21,673.82,0.58145192]
[1748102456766,0.29664347,674.21,673.83,0.58145192]
[1748102458268,0.29664347,674.21,673.84,0.58145192]
[1748102459464,0.29664347,674.21,673.85,0.58145192]
[1748102460163,0.29664347,674.21,673.86,0.58145192]
[1748102461270,0.29664347,674.21,673.87,0.58145192]
[1748102462666,0.29664347,674.21,673.88,0.58145192]
[1748102464077,0.29664347,674.21,673.89,0.58145192]
[1748102464875,0.29664347,674.21,673.9,0.58145192]
[1748102466181,0.29664347,674.21,673.91,0.58145192]
[1748102467483,0.29664347,674.21,673.92,0.58145192]
[1748102468885,0.29664347,674.21,673.93,0.58145192]
[1748102470286,0.29664347,674.21,673.78,0.64747751]
[1748102470287,0.29664347,674.21,673.94,0.58145192]
[1748102470887,0.25802816,674.76,673.94,0.58145192]
[1748102471088,0.29640607,674.75,673.94,0.58145192]
[1748102471488,0.29640607,674.75,673.95,0.58145192]
[1748102472588,0.29640607,674.75,673.96,0.58145192]
[1748102473490,0.29640607,674.75,673.97,0.58145192]
[1748102474891,0.29640607,674.75,673.98,0.58145192]
[1748102476495,0.29640607,674.75,673.99,0.58145192]
[1748102477692,0.29640607,674.75,674.0,0.58145192]
[1748102479195,0.29640607,674.75,673.65,0.871]
[1748102479196,0.29640607,674.75,674.01,0.58145192]
[1748102479894,0.29640607,674.75,674.02,0.58145192]
[1748102481694,0.29640607,674.75,673.79,0.64747751]
[1748102482797,0.29640607,674.75,673.8,0.57065771]
[1748102484300,0.29640607,674.75,673.81,0.57065771]
[1748102485600,0.29640607,674.75,673.82,0.57065771]
[1748102487002,0.29640607,674.75,673.83,0.57065771]
[1748102487799,0.29640607,674.75,673.84,0.57065771]
[1748102489102,0.29640607,674.75,673.85,0.57065771]
[1748102490802,0.29640607,674.75,673.86,0.57065771]
[1748102491504,0.29640607,674.75,673.87,0.682]
[1748102492105,0.29640607,674.75,673.88,0.57065771]
[1748102493605,0.29640607,674.75,673.89,0.57065771]
[1748102495105,0.29640607,674.75,673.9,0.57065771]
[1748102495906,0.29640607,674.75,673.87,0.682]
[1748102550554,0.29640607,674.75,673.33,0.64747751]
[1748102551447,0.29640607,674.75,673.31,0.64747751]
[1748102551653,0.29640607,674.75,673.34,0.55205642]
[1748102553151,0.29640607,674.75,673.35,0.55205642]
[1748102554454,0.29640607,674.75,673.36,0.798]
[1748102554954,0.29640607,674.75,673.36,1.35005642]
[1748102556250,0.29640607,674.75,673.37,0.55205642]
[1748102557155,0.29640607,674.75,673.38,0.55205642]
[1748102558055,0.29640607,674.75,673.39,0.55205642]
[1748102559459,0.29640607,674.75,673.4,0.55205642]
[1748102561361,0.29640607,674.75,673.41,0.55205642]
[1748102562963,0.29640607,674.75,673.42,0.55205642]
[1748102563862,0.29640607,674.75,673.43,0.55205642]
[1748102565464,0.29640607,674.75,673.44,0.55205642]
[1748102566462,0.29640607,674.75,673.45,0.55205642]
[1748102566964,0.43464776,674.74,673.45,0.55205642]
[1748102567164,0.29641925,674.72,673.45,0.55205642]
[1748102567865,0.4346151,674.71,673.45,0.55205642]
[1748102568068,0.29643243,674.69,673.45,0.55205642]
[1748102568263,0.29643243,674.69,673.46,0.55205642]
[1748102568766,0.43466431,674.68,673.46,0.55205642]
[1748102568968,0.29644561,674.66,673.46,0.55205642]
[1748102569167,0.43463209,674.65,673.47,0.55205642]
[1748102569367,0.29645879,674.63,673.47,0.55205642]
[1748102569967,0.43467714,674.62,673.47,0.55205642]
[1748102570268,0.29647198,674.6,673.47,0.55205642]
[1748102570462,0.43467714,674.59,673.47,0.55205642]
[1748102570667,0.29648516,674.57,673.47,0.55205642]
[1748102571069,0.43451024,674.56,673.48,0.55205642]
[1748102571269,0.29649835,674.54,673.48,0.55205642]
[1748102572175,0.29649835,674.54,673.49,0.55205642]
[1748102572370,0.43171944,674.53,673.49,0.55205642]
[1748102572572,0.29651154,674.51,673.49,0.55205642]
[1748102572869,0.43187166,674.5,673.49,0.55205642]
[1748102573070,0.29652473,674.48,673.49,0.55205642]
[1748102573471,0.43188358,674.47,673.5,0.55205642]
[1748102573674,0.29653791,674.45,673.5,0.55205642]
[1748102574069,0.43188192,674.44,673.5,0.55205642]
[1748102574266,0.29655111,674.42,673.5,0.55205642]
[1748102574463,0.43188235,674.41,673.5,0.55205642]
[1748102574666,0.25802816,674.76,673.5,0.55205642]
[1748102574667,0.2965643,674.39,673.5,0.55205642]
[1748102574865,0.43188338,674.38,673.5,0.55205642]
[1748102575069,0.29657749,674.36,673.51,0.55205642]
[1748102575266,0.43188206,674.35,673.51,0.55205642]
[1748102575471,0.29659069,674.33,673.51,0.55205642]
[1748102575672,0.43198354,674.32,673.51,0.55205642]
[1748102575874,0.29660388,674.3,673.51,0.55205642]
[1748102576467,0.43198281,674.29,673.51,0.55205642]
[1748102576667,0.29661268,674.28,673.52,0.55205642]
[1748102576873,0.43198341,674.27,673.52,0.55205642]
[1748102577074,0.29662148,674.26,673.52,0.55205642]
[1748102577571,0.29662148,674.26,673.53,0.55205642]
[1748102578074,0.43197782,674.25,673.53,0.55205642]
[1748102578271,0.43197782,674.24,673.53,0.55205642]
[1748102578577,0.43197778,674.23,673.54,0.55205642]
[1748102578776,0.72861685,674.22,673.54,0.55205642]
[1748102578973,0.29664347,674.21,673.54,0.55205642]
[1748102579177,0.4319825,674.2,673.54,0.55205642]
[1748102579377,0.29665227,674.19,673.54,0.55205642]
[1748102579873,0.4319825,674.18,673.55,0.55205642]
[1748102580070,0.7286443,674.17,673.55,0.55205642]
[1748102580273,0.25802816,674.76,673.55,0.55205642]
[1748102580274,0.72864871,674.16,673.55,0.55205642]